[Event "10th LCC FIDE Open 2018"]
[Site "London"]
[Date "2018.12.16"]
[Round "9"]
[White "Ethelontis, Alexandros N"]
[Black "Gerlach, Felix Tobias"]
[Result "1-0"]
[ECO "A36"]
[WhiteElo "2187"]
[BlackElo "2050"]
[Annotator "NA"]
[PlyCount "74"]
[EventDate "2018.12.09"]
[EventType "swiss"]
[EventCountry "ENG"]
[SourceTitle "playchess.com"]
[Source "ChessBase"]
[SourceQuality "1"]
[TimeControl "40/5400+30:1800+30"]

1. c4 {[%emt 0:00:00]} Nf6 {[%emt 0:02:50]} 2. g3 {[%emt 0:00:00]} g6 {[%emt 0:00:55]} 3. Bg2 {[%emt 0:00:00]} Bg7 {[%emt 0:00:06]} 4. Nc3 {[%emt 0:00:00]} O-O {[%emt 0:00:10]} 5. d3 {[%emt 0:00:00]} c5 {[%emt 0:00:53]} 6. a3 {[%emt 0:02:33]} Nc6 {[%emt 0:00:50]} 7. Rb1 {[%emt 0:00:17]} a5 {[%emt 0:02:05]} 8. e3 {[%emt 0:17:33]} e6 {[%emt 0:08:28]} 9. Qb3 {[%emt 0:05:15]} Ne5 {[%emt 0:08:46]} 10. Na4 {[%emt 0:00:58]} d5 {[%emt 0:05:13]} 11. Nxc5 {[%emt 0:12:28]} dxc4 {[%emt 0:09:19]} 12. dxc4 {[%emt 0:02:06]} Qc7 {[%emt 0:00:19]} 13. Na4 {[%emt 0:08:07]} Nxc4 {[%emt 0:01:14]} 14. Ne2 {[%emt 0:02:16]} Bd7 {[%emt 0:12:51]} 15. Nd4 {[%emt 0:04:56]} b5 {[%emt 0:01:47]} 16. Nc3 {[%emt 0:13:38]} Rab8 {[%emt 0:19:28]} 17. Ndxb5 {[%emt 0:04:41]} Qc5 {[%emt 0:01:48]} 18. a4 {[%emt 0:01:40]} Nd5 {[%emt 0:04:26]} 19. O-O {[%emt 0:04:52]} Bxb5 {[%emt 0:01:59]} 20. Nxb5 {[%emt 0:05:59]} Nc7 {[%emt 0:00:38]} 21. Qc2 {[%emt 0:01:11]} Nxb5 {[%emt 0:00:19]} 22. axb5 {[%emt 0:00:50]} Qxb5 {[%emt 0:00:10]} 23. b3 {[%emt 0:00:59]} Rfc8 {[%emt 0:01:55]} 24. Qa2 {[%emt 0:02:15]} a4 {[%emt 0:01:41]} 25. b4 {[%emt 0:00:41]} Bf8 {[%emt 0:02:59]} 26. Rd1 {[%emt 0:01:22]} Bxb4 {[%emt 0:00:42]} 27. Bf1 {[%emt 0:00:50]} Qc6 {[%emt 0:10:00]} 28. Rd4 {[%emt 0:00:29]} Ne5 {[%emt 0:00:36]} 29. Rdxb4 {[%emt 0:05:53]} Rxb4 {[%emt 0:00:25]} 30. Rxb4 {[%emt 0:00:29]} Qxc1 {[%emt 0:00:35]} 31. Rxa4 {[%emt 0:00:42]} Nf3+ {[%emt 0:00:56]} 32. Kg2 {[%emt 0:00:08]} Nd2 {[%emt 0:00:22]} 33. Bd3 {[%emt 0:00:49]} Qd1 {[%emt 0:00:29]} 34. Rf4 {[%emt 0:00:41]} Rc1 {[%emt 0:00:55]} 35. Qa8+ {[%emt 0:00:40]} Kg7 {[%emt 0:00:06]} 36. Qa7 {[%emt 0:00:49]} Qh1+ {[%emt 0:01:08]} 37. Kh3 {[%emt 0:00:05]} Rc2 {[%emt 0:01:20]} 1-0

[Event "10th LCC FIDE Open 2018"]
[Site "London"]
[Date "2018.12.16"]
[Round "9"]
[White "Britton, Richard L"]
[Black "Cherniaev, Alexander"]
[Result "0-1"]
[ECO "B06"]
[WhiteElo "2186"]
[BlackElo "2393"]
[Annotator "NA"]
[PlyCount "108"]
[EventDate "2018.12.09"]
[EventType "swiss"]
[EventCountry "ENG"]
[SourceTitle "playchess.com"]
[Source "ChessBase"]
[SourceQuality "1"]
[TimeControl "40/5400+30:1800+30"]

1. e4 {[%emt 0:00:00]} g6 {[%emt 0:00:00]} 2. d4 {[%emt 0:00:00]} Bg7 {[%emt 0:00:00]} 3. Nc3 {[%emt 0:00:00]} a6 {[%emt 0:00:41]} 4. f4 {[%emt 0:01:39]} b5 {[%emt 0:00:13]} 5. Nf3 {[%emt 0:00:20]} d6 {[%emt 0:00:01]} 6. Bd3 {[%emt 0:00:20]} Nd7 {[%emt 0:00:07]} 7. O-O {[%emt 0:00:13]} c5 {[%emt 0:00:23]} 8. Be3 {[%emt 0:03:50]} Ngf6 {[%emt 0:05:00]} 9. h3 {[%emt 0:10:57]} c4 {[%emt 0:16:24]} 10. Be2 {[%emt 0:00:07]} Bb7 {[%emt 0:00:09]} 11. e5 {[%emt 0:16:39]} Nd5 {[%emt 0:00:14]} 12. Qd2 {[%emt 0:00:11]} N7b6 {[%emt 0:13:15]} 13. Nxd5 {[%emt 0:31:02]} Bxd5 {[%emt 0:02:08]} 14. c3 {[%emt 0:00:13]} e6 {[%emt 0:05:21]} 15. Nh2 {[%emt 0:00:36]} f5 {[%emt 0:00:52]} 16. exf6 {[%emt 0:02:09]} Qxf6 {[%emt 0:00:26]} 17. Rae1 {[%emt 0:07:34]} O-O {[%emt 0:00:33]} 18. Bd1 {[%emt 0:01:16]} Rae8 {[%emt 0:02:07]} 19. Bc2 {[%emt 0:00:09]} Qe7 {[%emt 0:01:51]} 20. Bf2 {[%emt 0:01:26]} Rf7 {[%emt 0:02:51]} 21. Bg3 {[%emt 0:00:07]} Qf8 {[%emt 0:03:29]} 22. Bb1 {[%emt 0:03:27]} Nd7 {[%emt 0:00:16]} 23. Ng4 {[%emt 0:11:22]} Nf6 {[%emt 0:03:33]} 24. Nxf6+ {[%emt 0:01:56]} Bxf6 {[%emt 0:03:40]} 25. Rf2 {[%emt 0:00:25]} Bg7 {[%emt 0:12:09]} 26. Be4 {[%emt 0:00:22]} Bxe4 {[%emt 0:00:16]} 27. Rxe4 {[%emt 0:00:06]} d5 {[%emt 0:00:05]} 28. Ree2 {[%emt 0:05:10]} Rb7 {[%emt 0:03:27]} 29. Qe1 {[%emt 0:00:15]} Rb6 {[%emt 0:01:57]} 30. Rf3 {[%emt 0:00:13]} b4 {[%emt 0:00:35]} 31. Bh2 {[%emt 0:00:27]} bxc3 {[%emt 0:00:18]} 32. bxc3 {[%emt 0:00:04]} Qf7 {[%emt 0:05:13]} 33. g4 {[%emt 0:00:12]} Qb7 {[%emt 0:00:17]} 34. Rf1 {[%emt 0:00:28]} Kh8 {[%emt 0:04:49]} 35. Kh1 {[%emt 0:00:26]} Rf8 {[%emt 0:02:17]} 36. Rxe6 {[%emt 0:01:27]} Rxe6 {[%emt 0:00:03]} 37. Qxe6 {[%emt 0:00:09]} Qb2 {[%emt 0:00:18]} 38. f5 {[%emt 0:01:24]} Qxc3 {[%emt 0:02:52]} 39. f6 {[%emt 0:00:09]} Bh6 {[%emt 0:00:05]} 40. g5 {[%emt 0:02:12]} Qd3 {[%emt 0:04:01]} 41. Qe1 {[%emt 0:07:55]} Bxg5 {[%emt 0:02:54]} 42. f7 {[%emt 0:02:11]} h5 {[%emt 0:10:56]} 43. Kg2 {[%emt 0:02:31]} Qe3 {[%emt 0:05:57]} 44. Qxe3 {[%emt 0:07:47]} Bxe3 {[%emt 0:00:02]} 45. Be5+ {[%emt 0:00:07]} Kh7 {[%emt 0:00:06]} 46. Rf3 {[%emt 0:01:31]} Bd2 {[%emt 0:05:02]} 47. Kf2 {[%emt 0:01:37]} Bb4 {[%emt 0:00:25]} 48. Rf6 {[%emt 0:05:44]} c3 {[%emt 0:05:53]} 49. Ke2 {[%emt 0:01:11]} Rc8 {[%emt 0:00:51]} 50. Rf1 {[%emt 0:01:34]} Ba3 {[%emt 0:00:30]} 51. Bf4 {[%emt 0:01:13]} c2 {[%emt 0:00:55]} 52. h4 {[%emt 0:00:54]} Kg7 {[%emt 0:00:36]} 53. Be5+ {[%emt 0:00:04]} Kf8 {[%emt 0:00:22]} 54. Bf4 {[%emt 0:00:12]} c1=Q {[%emt 0:00:24]} 0-1

[Event "10th LCC FIDE Open 2018"]
[Site "London"]
[Date "2018.12.16"]
[Round "9"]
[White "Sumit, Kumar"]
[Black "Sedykh, Mikhail"]
[Result "1/2-1/2"]
[ECO "B31"]
[WhiteElo "2179"]
[BlackElo "2118"]
[Annotator "NA"]
[PlyCount "34"]
[EventDate "2018.12.09"]
[EventType "swiss"]
[EventCountry "ENG"]
[SourceTitle "playchess.com"]
[Source "ChessBase"]
[SourceQuality "1"]
[TimeControl "40/5400+30:1800+30"]

1. e4 {[%emt 0:00:00]} c5 {[%emt 0:00:23]} 2. Nf3 {[%emt 0:00:00]} Nc6 {[%emt 0:00:09]} 3. Bb5 {[%emt 0:00:00]} g6 {[%emt 0:00:17]} 4. O-O {[%emt 0:00:10]} Bg7 {[%emt 0:00:21]} 5. Re1 {[%emt 0:00:57]} Nf6 {[%emt 0:01:38]} 6. c3 {[%emt 0:00:23]} O-O {[%emt 0:01:37]} 7. d3 {[%emt 0:04:05]} a6 {[%emt 0:09:53]} 8. Bxc6 {[%emt 0:00:50]} dxc6 {[%emt 0:00:06]} 9. Qc2 {[%emt 0:02:24]} Nd7 {[%emt 0:08:21]} 10. Be3 {[%emt 0:01:27]} e5 {[%emt 0:06:56]} 11. Nbd2 {[%emt 0:04:07]} Qe7 {[%emt 0:12:30]} 12. d4 {[%emt 0:04:37]} cxd4 {[%emt 0:04:05]} 13. cxd4 {[%emt 0:00:07]} exd4 {[%emt 0:02:45]} 14. Bxd4 {[%emt 0:00:18]} Bxd4 {[%emt 0:02:13]} 15. Nxd4 {[%emt 0:00:08]} Qc5 {[%emt 0:02:12]} 16. N2b3 {[%emt 0:07:03]} Qxc2 17. Nxc2 Ne5 1/2-1/2

[Event "10th LCC FIDE Open 2018"]
[Site "London"]
[Date "2018.12.16"]
[Round "9"]
[White "Ogunshola, Ben"]
[Black "Coote, Trevor D"]
[Result "1/2-1/2"]
[ECO "D34"]
[WhiteElo "2172"]
[BlackElo "2057"]
[Annotator "NA"]
[PlyCount "81"]
[EventDate "2018.12.09"]
[EventType "swiss"]
[EventCountry "ENG"]
[SourceTitle "playchess.com"]
[Source "ChessBase"]
[SourceQuality "1"]
[TimeControl "40/5400+30:1800+30"]

1. c4 {[%emt 0:01:22]} e6 {[%emt 0:00:16]} 2. Nf3 {[%emt 0:00:17]} d5 {[%emt 0:00:08]} 3. b3 {[%emt 0:01:48]} c5 {[%emt 0:01:58]} 4. g3 {[%emt 0:01:57]} Nc6 {[%emt 0:00:43]} 5. Bg2 {[%emt 0:01:32]} Nf6 {[%emt 0:01:58]} 6. O-O {[%emt 0:00:06]} Be7 {[%emt 0:00:21]} 7. cxd5 {[%emt 0:00:09]} exd5 {[%emt 0:00:14]} 8. d4 {[%emt 0:00:03]} O-O {[%emt 0:03:24]} 9. Nc3 {[%emt 0:00:03]} Be6 {[%emt 0:05:16]} 10. Bb2 {[%emt 0:02:26]} h6 {[%emt 0:03:24]} 11. Rc1 {[%emt 0:00:22]} Qd7 {[%emt 0:02:24]} 12. Ne5 {[%emt 0:05:01]} Qd8 {[%emt 0:03:46]} 13. Nxc6 {[%emt 0:00:53]} bxc6 {[%emt 0:00:07]} 14. dxc5 {[%emt 0:00:07]} Qd7 {[%emt 0:05:05]} 15. Qd4 {[%emt 0:01:08]} Ne8 {[%emt 0:04:02]} 16. Rfd1 {[%emt 0:00:14]} f5 {[%emt 0:05:40]} 17. e3 {[%emt 0:02:18]} Rd8 {[%emt 0:01:54]} 18. b4 {[%emt 0:00:45]} Rb8 {[%emt 0:03:10]} 19. a3 {[%emt 0:00:20]} Bf6 {[%emt 0:01:00]} 20. Qd2 {[%emt 0:01:44]} Nc7 {[%emt 0:00:21]} 21. Ne2 {[%emt 0:03:12]} Bxb2 {[%emt 0:02:30]} 22. Qxb2 {[%emt 0:00:02]} a5 {[%emt 0:00:22]} 23. Nf4 {[%emt 0:02:50]} axb4 {[%emt 0:11:39]} 24. axb4 {[%emt 0:02:49]} Bf7 {[%emt 0:01:48]} 25. Ra1 {[%emt 0:08:19]} g5 {[%emt 0:09:04]} 26. Nd3 {[%emt 0:00:22]} Bh5 {[%emt 0:00:17]} 27. Rdc1 {[%emt 0:01:19]} Rb7 {[%emt 0:00:14]} 28. Ra4 {[%emt 0:05:42]} Ne6 {[%emt 0:02:41]} 29. Ne5 {[%emt 0:02:51]} Qg7 {[%emt 0:01:34]} 30. Qc3 {[%emt 0:01:02]} Be2 {[%emt 0:03:26]} 31. Bf1 {[%emt 0:16:35]} Bxf1 {[%emt 0:03:52]} 32. Kxf1 {[%emt 0:00:01]} f4 {[%emt 0:01:30]} 33. Nxc6 {[%emt 0:01:13]} Qd7 {[%emt 0:01:05]} 34. Ra6 {[%emt 0:02:51]} fxg3 {[%emt 0:03:34]} 35. hxg3 {[%emt 0:00:29]} Nxc5 {[%emt 0:02:23]} 36. Qxc5 {[%emt 0:01:52]} Qh3+ {[%emt 0:06:11]} 37. Kg1 {[%emt 0:01:07]} Rxf2 {[%emt 0:02:54]} 38. Qxd5+ {[%emt 0:04:07]} Rbf7 {[%emt 0:01:36]} 39. Ne7+ {[%emt 0:01:02]} Kh7 {[%emt 0:02:28]} 40. Qe4+ {[%emt 0:00:56]} R7f5 {[%emt 0:00:45]} 41. Qxf5+ {[%emt 0:30:56]} 1/2-1/2

[Event "10th LCC FIDE Open 2018"]
[Site "London"]
[Date "2018.12.16"]
[Round "9"]
[White "Stigar, Petter"]
[Black "Gschnitzer, Adrian"]
[Result "1/2-1/2"]
[ECO "D32"]
[WhiteElo "2171"]
[BlackElo "2374"]
[Annotator "NA"]
[PlyCount "61"]
[EventDate "2018.12.09"]
[EventType "swiss"]
[EventCountry "ENG"]
[SourceTitle "playchess.com"]
[Source "ChessBase"]
[SourceQuality "1"]
[TimeControl "40/5400+30:1800+30"]

1. Nf3 {[%emt 0:00:00]} Nf6 {[%emt 0:00:00]} 2. c4 {[%emt 0:00:06]} c5 {[%emt 0:00:00]} 3. Nc3 {[%emt 0:00:13]} Nc6 {[%emt 0:00:00]} 4. e3 {[%emt 0:01:45]} e6 {[%emt 0:00:00]} 5. d4 {[%emt 0:00:22]} d5 {[%emt 0:00:00]} 6. cxd5 {[%emt 0:00:29]} exd5 {[%emt 0:00:11]} 7. Bb5 {[%emt 0:00:32]} Be6 {[%emt 0:03:37]} 8. O-O {[%emt 0:01:32]} Be7 {[%emt 0:00:48]} 9. dxc5 {[%emt 0:01:54]} Bxc5 {[%emt 0:00:47]} 10. b3 {[%emt 0:03:55]} O-O {[%emt 0:00:30]} 11. Bb2 {[%emt 0:00:35]} a6 {[%emt 0:01:27]} 12. Bxc6 {[%emt 0:02:16]} bxc6 {[%emt 0:00:23]} 13. Rc1 {[%emt 0:00:28]} Bd6 {[%emt 0:01:46]} 14. Na4 {[%emt 0:04:15]} Rc8 {[%emt 0:03:01]} 15. Qd4 {[%emt 0:16:02]} Qc7 {[%emt 0:13:21]} 16. Nc5 {[%emt 0:02:05]} a5 {[%emt 0:07:47]} 17. Qh4 {[%emt 0:08:09]} Qe7 {[%emt 0:09:46]} 18. Qd4 {[%emt 0:11:32]} Rfe8 {[%emt 0:02:41]} 19. h3 {[%emt 0:01:23]} Bf5 {[%emt 0:02:48]} 20. Rfd1 {[%emt 0:00:59]} Bg6 {[%emt 0:07:02]} 21. Nh4 {[%emt 0:03:17]} Bc7 {[%emt 0:14:27]} 22. Nxg6 {[%emt 0:08:41]} hxg6 {[%emt 0:00:02]} 23. g3 {[%emt 0:03:50]} Bb6 {[%emt 0:04:16]} 24. Rc2 {[%emt 0:01:30]} Qa7 {[%emt 0:06:13]} 25. Rdc1 {[%emt 0:03:25]} Re4 {[%emt 0:00:29]} 26. Qd3 {[%emt 0:00:11]} Re7 {[%emt 0:00:39]} 27. Bd4 {[%emt 0:00:42]} Nd7 {[%emt 0:06:21]} 28. Nxd7 {[%emt 0:01:55]} Bxd4 {[%emt 0:00:06]} 29. Qxd4 {[%emt 0:01:36]} Qxd7 {[%emt 0:00:20]} 30. Qg4 {[%emt 0:01:20]} Re6 {[%emt 0:01:31]} 31. Rc5 {[%emt 0:00:31]} 1/2-1/2

[Event "10th LCC FIDE Open 2018"]
[Site "London"]
[Date "2018.12.16"]
[Round "9"]
[White "Russell, Christopher"]
[Black "Ditmas, Hugh"]
[Result "1-0"]
[ECO "B22"]
[WhiteElo "2169"]
[BlackElo "1978"]
[Annotator "NA"]
[PlyCount "79"]
[EventDate "2018.12.09"]
[EventType "swiss"]
[EventCountry "ENG"]
[SourceTitle "playchess.com"]
[Source "ChessBase"]
[SourceQuality "1"]
[TimeControl "40/5400+30:1800+30"]

1. e4 {[%emt 0:00:00]} c5 {[%emt 0:00:00]} 2. c3 {[%emt 0:00:00]} Nf6 {[%emt 0:00:25]} 3. e5 {[%emt 0:00:00]} Nd5 {[%emt 0:00:04]} 4. Nf3 {[%emt 0:00:00]} Nc6 {[%emt 0:00:15]} 5. Bc4 {[%emt 0:00:00]} e6 {[%emt 0:00:06]} 6. d4 {[%emt 0:00:05]} cxd4 {[%emt 0:00:47]} 7. cxd4 {[%emt 0:00:03]} d6 {[%emt 0:00:22]} 8. O-O {[%emt 0:00:06]} Be7 {[%emt 0:00:19]} 9. Qe2 {[%emt 0:00:07]} O-O {[%emt 0:00:15]} 10. Rd1 {[%emt 0:00:23]} Bd7 {[%emt 0:04:31]} 11. Nc3 {[%emt 0:00:13]} Nxc3 {[%emt 0:00:23]} 12. bxc3 {[%emt 0:00:05]} d5 {[%emt 0:03:47]} 13. Bd3 {[%emt 0:04:33]} Rc8 {[%emt 0:02:11]} 14. Bc2 {[%emt 0:18:38]} Qc7 {[%emt 0:03:57]} 15. Ng5 {[%emt 0:12:10]} Bxg5 {[%emt 0:14:57]} 16. Bxg5 {[%emt 0:00:13]} Nxd4 {[%emt 0:02:04]} 17. Bxh7+ {[%emt 0:08:33]} Kxh7 {[%emt 0:00:27]} 18. Rxd4 {[%emt 0:00:22]} Qxc3 {[%emt 0:01:49]} 19. Rad1 {[%emt 0:13:33]} Kg8 {[%emt 0:10:39]} 20. Bf6 {[%emt 0:20:59]} Qc2 {[%emt 0:11:59]} 21. Qg4 {[%emt 0:01:08]} Qg6 {[%emt 0:01:59]} 22. Qf3 {[%emt 0:01:55]} gxf6 {[%emt 0:09:51]} 23. Rg4 {[%emt 0:02:21]} fxe5 {[%emt 0:02:06]} 24. Qg3 {[%emt 0:03:59]} Kg7 {[%emt 0:03:45]} 25. Qxe5+ {[%emt 0:02:18]} f6 {[%emt 0:00:44]} 26. Rxg6+ {[%emt 0:00:30]} Kxg6 {[%emt 0:00:08]} 27. Qd6 {[%emt 0:00:29]} Rfd8 {[%emt 0:00:55]} 28. Qe7 {[%emt 0:02:45]} e5 {[%emt 0:04:21]} 29. h4 {[%emt 0:01:03]} Bg4 {[%emt 0:05:16]} 30. h5+ {[%emt 0:03:11]} Bxh5 {[%emt 0:00:45]} 31. f3 {[%emt 0:01:48]} e4 {[%emt 0:04:15]} 32. g4 {[%emt 0:00:46]} Bxg4 {[%emt 0:01:20]} 33. fxg4 {[%emt 0:00:07]} Kg5 {[%emt 0:02:07]} 34. Qg7+ {[%emt 0:02:04]} Kf4 {[%emt 0:00:14]} 35. Rf1+ {[%emt 0:00:41]} Kg3 {[%emt 0:00:35]} 36. Qxf6 {[%emt 0:01:11]} Rf8 {[%emt 0:01:37]} 37. Qd6+ {[%emt 0:01:06]} Kxg4 {[%emt 0:00:30]} 38. Rxf8 {[%emt 0:00:00]} Rxf8 {[%emt 0:01:14]} 39. Qxf8 {[%emt 0:00:00]} d4 {[%emt 0:00:09]} 40. Qg7+ {[%emt 0:00:09]} 1-0

[Event "10th LCC FIDE Open 2018"]
[Site "London"]
[Date "2018.12.16"]
[Round "9"]
[White "Stone, Andrew M"]
[Black "Lyell, Mark"]
[Result "0-1"]
[ECO "A21"]
[WhiteElo "2157"]
[BlackElo "2317"]
[Annotator "NA"]
[PlyCount "50"]
[EventDate "2018.12.09"]
[EventType "swiss"]
[EventCountry "ENG"]
[SourceTitle "playchess.com"]
[Source "ChessBase"]
[SourceQuality "1"]
[TimeControl "40/5400+30:1800+30"]

1. c4 {[%emt 0:00:00]} e5 {[%emt 0:00:00]} 2. Nc3 {[%emt 0:00:00]} Bb4 {[%emt 0:00:09]} 3. g3 {[%emt 0:05:13]} Bxc3 {[%emt 0:00:27]} 4. bxc3 {[%emt 0:01:29]} d6 {[%emt 0:01:01]} 5. Bg2 {[%emt 0:01:22]} Nc6 {[%emt 0:01:16]} 6. e4 {[%emt 0:06:03]} f5 {[%emt 0:01:36]} 7. Qh5+ {[%emt 0:07:37]} g6 {[%emt 0:02:11]} 8. Qe2 {[%emt 0:00:11]} fxe4 {[%emt 0:01:29]} 9. Bxe4 {[%emt 0:04:10]} Nf6 {[%emt 0:00:38]} 10. Bg2 {[%emt 0:02:58]} O-O {[%emt 0:02:30]} 11. d3 {[%emt 0:05:55]} Bf5 {[%emt 0:17:57]} 12. Nh3 {[%emt 0:11:08]} e4 {[%emt 0:18:30]} 13. d4 {[%emt 0:00:57]} Qd7 {[%emt 0:14:22]} 14. Nf4 {[%emt 0:01:35]} Bg4 {[%emt 0:00:08]} 15. Qb2 {[%emt 0:08:57]} b6 {[%emt 0:03:58]} 16. Nd5 {[%emt 0:05:57]} Na5 {[%emt 0:10:16]} 17. Ne3 {[%emt 0:01:25]} Bf3 {[%emt 0:00:56]} 18. O-O {[%emt 0:01:19]} c5 {[%emt 0:01:42]} 19. d5 {[%emt 0:02:55]} Rae8 {[%emt 0:00:56]} 20. Re1 {[%emt 0:06:20]} Re5 {[%emt 0:00:41]} 21. Qb5 {[%emt 0:08:32]} Qc8 {[%emt 0:03:03]} 22. Bf1 {[%emt 0:07:55]} Rh5 {[%emt 0:00:55]} 23. Ng2 {[%emt 0:00:28]} Ng4 {[%emt 0:05:45]} 24. h4 {[%emt 0:02:15]} Ne5 {[%emt 0:06:59]} 25. Bg5 {[%emt 0:04:02]} Qh3 {[%emt 0:02:04]} 0-1

[Event "10th LCC FIDE Open 2018"]
[Site "London"]
[Date "2018.12.16"]
[Round "9"]
[White "Bezuidenhout, Roland"]
[Black "Abbas, Daniel"]
[Result "1/2-1/2"]
[ECO "C00"]
[WhiteElo "2145"]
[BlackElo "2280"]
[Annotator "NA"]
[PlyCount "36"]
[EventDate "2018.12.09"]
[EventType "swiss"]
[EventCountry "ENG"]
[SourceTitle "playchess.com"]
[Source "ChessBase"]
[SourceQuality "1"]
[TimeControl "40/5400+30:1800+30"]

1. e4 {[%emt 0:00:08]} c5 {[%emt 0:00:00]} 2. Nf3 {[%emt 0:00:06]} e6 {[%emt 0:00:00]} 3. g3 {[%emt 0:00:14]} Nc6 {[%emt 0:00:14]} 4. Bg2 {[%emt 0:00:08]} Nf6 {[%emt 0:01:21]} 5. Qe2 {[%emt 0:00:08]} e5 {[%emt 0:00:04]} 6. O-O {[%emt 0:00:16]} Be7 {[%emt 0:00:17]} 7. d3 {[%emt 0:00:16]} d6 {[%emt 0:01:29]} 8. c3 {[%emt 0:01:27]} O-O {[%emt 0:00:24]} 9. a3 {[%emt 0:00:08]} h6 {[%emt 0:04:33]} 10. b4 {[%emt 0:00:11]} a6 {[%emt 0:00:07]} 11. Nbd2 {[%emt 0:00:19]} Be6 {[%emt 0:01:30]} 12. Bb2 {[%emt 0:00:10]} Rc8 {[%emt 0:04:43]} 13. Rac1 {[%emt 0:02:04]} b5 {[%emt 0:03:56]} 14. Rfd1 {[%emt 0:03:32]} Qb6 {[%emt 0:03:56]} 15. Nf1 {[%emt 0:02:27]} a5 {[%emt 0:04:33]} 16. bxc5 {[%emt 0:03:06]} dxc5 {[%emt 0:05:21]} 17. Ne3 {[%emt 0:00:08]} Rfd8 {[%emt 0:03:04]} 18. c4 {[%emt 0:03:16]} Nd4 {[%emt 0:05:56]} 1/2-1/2

[Event "10th LCC FIDE Open 2018"]
[Site "London"]
[Date "2018.12.16"]
[Round "9"]
[White "Burrows, Martin P"]
[Black "Wu, Li"]
[Result "1/2-1/2"]
[ECO "B06"]
[WhiteElo "2134"]
[BlackElo "2317"]
[Annotator "NA"]
[PlyCount "73"]
[EventDate "2018.12.09"]
[EventType "swiss"]
[EventCountry "ENG"]
[SourceTitle "playchess.com"]
[Source "ChessBase"]
[SourceQuality "1"]
[TimeControl "40/5400+30:1800+30"]

1. e4 {[%emt 0:00:00]} g6 {[%emt 0:05:40]} 2. d4 {[%emt 0:00:00]} Bg7 {[%emt 0:00:03]} 3. Nc3 {[%emt 0:00:00]} d6 {[%emt 0:00:37]} 4. Be3 {[%emt 0:00:00]} Nd7 {[%emt 0:00:27]} 5. Qd2 {[%emt 0:00:42]} a6 {[%emt 0:00:13]} 6. O-O-O {[%emt 0:00:52]} b5 {[%emt 0:00:18]} 7. h4 {[%emt 0:00:22]} h5 {[%emt 0:01:26]} 8. Nh3 {[%emt 0:02:09]} Bb7 {[%emt 0:02:42]} 9. Ng5 {[%emt 0:00:14]} Rc8 {[%emt 0:11:09]} 10. f4 {[%emt 0:03:25]} Nh6 {[%emt 0:07:36]} 11. Bd3 {[%emt 0:15:49]} c5 {[%emt 0:14:46]} 12. e5 {[%emt 0:17:19]} cxd4 {[%emt 0:01:14]} 13. Bxd4 {[%emt 0:01:24]} dxe5 {[%emt 0:00:54]} 14. fxe5 {[%emt 0:12:02]} Nxe5 {[%emt 0:02:15]} 15. Ne6 {[%emt 0:10:13]} fxe6 {[%emt 0:03:52]} 16. Bxe5 {[%emt 0:00:29]} Bxe5 {[%emt 0:17:00]} 17. Bxg6+ {[%emt 0:00:13]} Nf7 {[%emt 0:02:04]} 18. Qf2 {[%emt 0:02:31]} O-O {[%emt 0:01:33]} 19. Rxd8 {[%emt 0:00:31]} Rcxd8 {[%emt 0:03:00]} 20. Qe2 {[%emt 0:03:07]} Bf4+ {[%emt 0:03:11]} 21. Kb1 {[%emt 0:00:24]} Ne5 {[%emt 0:00:06]} 22. Qxh5 {[%emt 0:02:41]} Nxg6 {[%emt 0:00:13]} 23. Qxg6+ {[%emt 0:00:08]} Kh8 {[%emt 0:00:03]} 24. Ne4 {[%emt 0:02:41]} Bxe4 {[%emt 0:02:16]} 25. Qxe4 {[%emt 0:00:08]} e5 {[%emt 0:00:12]} 26. a3 {[%emt 0:00:48]} Rg8 {[%emt 0:01:30]} 27. Qf3 {[%emt 0:08:09]} Rg3 {[%emt 0:00:34]} 28. Qh5+ {[%emt 0:03:27]} Kg7 {[%emt 0:00:09]} 29. Rf1 {[%emt 0:03:43]} Rxg2 {[%emt 0:01:20]} 30. Rxf4 {[%emt 0:02:40]} exf4 {[%emt 0:00:26]} 31. Qe5+ {[%emt 0:00:10]} Kg8 {[%emt 0:00:12]} 32. Qxf4 {[%emt 0:00:42]} Rd1+ {[%emt 0:00:45]} 33. Ka2 {[%emt 0:00:02]} Rdd2 {[%emt 0:00:05]} 34. Qb8+ {[%emt 0:03:50]} Kf7 {[%emt 0:01:06]} 35. Qf4+ {[%emt 0:00:07]} Kg8 {[%emt 0:00:28]} 36. Qb8+ {[%emt 0:00:10]} Kf7 {[%emt 0:00:23]} 37. Qf4+ {[%emt 0:00:08] Rg7 [%emt 00:00:21]} 1/2-1/2